[Event "Baku Open 2024"]
[Site "Baku"]
[Date "2024.07.05"]
[Round "7.14"]
[White "Ilamparthi A R"]
[Black "Akhilbay, Imangali"]
[Result "1-0"]
[ECO "C02"]
[WhiteElo "2446"]
[BlackElo "2303"]
[Annotator "TA"]
[PlyCount "89"]
[EventDate "2024.06.29"]
[EventType "swiss"]
[EventCountry "AZE"]
[SourceTitle "playchess.com"]
[Source "ChessBase"]
[SourceQuality "1"]
[TimeControl "5400+30"]

{[%evp 23,89,0,0,-23,0,-16,-12,-12,0,0,0,-50,-14,-39,10,0,0,0,0,0,8,20,11,0,0,0,0,-59,18,-44,-44,-45,0,0,0,-10,0,0,0,-42,-51,-58,-62,-48,0,0,0,0,0,0,0,0,0,0,0,0,0,0,0,-39,-24,-28,831,835,826,825,776,785]} 1. e4 {[%emt 0:00:03]} e6 {[%emt 0:00:05]} 2. d4 {[%emt 0:00:09]} d5 {[%emt 0:00:07]} 3. e5 {[%emt 0:00:05]} c5 {[%emt 0:00:04]} 4. c3 {[%emt 0:00:06]} Nc6 {[%emt 0:00:06]} 5. Nf3 {[%emt 0:00:06]} Nge7 {[%emt 0:00:05]} 6. Be2 {[%emt 0:01:14]} cxd4 {[%emt 0:02:37]} 7. cxd4 {[%emt 0:00:04]} Nf5 {[%emt 0:00:03]} 8. Nc3 {[%emt 0:02:15]} Qb6 {[%emt 0:00:07]} 9. Na4 {[%emt 0:01:21]} Qa5+ {[%emt 0:00:07]} 10. Kf1 {[%emt 0:03:55]} Bd7 {[%emt 0:06:18]} 11. Nc3 {[%emt 0:09:33]} Qb6 {[%emt 0:10:46]} 12. Na4 {[%emt 0:10:26]} Qa5 {[%emt 0:00:29][%cal Oc6d4]} 13. Bd2 {[%emt 0:01:20]} Qd8 {[%emt 0:03:43]} 14. Bg5 {[%emt 0:02:31]} f6 {[%emt 0:13:06]} 15. exf6 {[%emt 0:02:17] The position is equal.} gxf6 {[%emt 0:00:06]} 16. Bf4 {[%emt 0:00:40]} Bd6 {[%emt 0:03:17]} 17. Qd2 {[%emt 0:04:40]} (17. Bxd6 $11 Nxd6 18. g3) 17... O-O {[%emt 0:04:29]} 18. Nc5 {[%emt 0:02:55]} b6 {[%emt 0:06:56]} (18... Rc8 $15 {is more appropriate.}) 19. Nxd7 {[%emt 0:04:25]} (19. Bxd6 {simplifies} Nxd6 20. Nxd7 Qxd7 21. Rc1) 19... Qxd7 {[%emt 0:01:05]} 20. g4 {[%emt 0:02:52]} Bxf4 {[%emt 0:10:20]} 21. Qxf4 {[%emt 0:00:04]} Ng7 {[%emt 0:00:09][%cal Oe6e5,Bf5g7,Bg7e6,Be6f4][%mdl 32]} 22. Qh6 {[%emt 0:01:22] Black must now prevent Rc1.} e5 {[%emt 0:07:25] Hoping for ...e4.} 23. dxe5 {[%emt 0:01:57]} Nxe5 {[%emt 0:00:31]} 24. h3 {[%emt 0:13:22]} Ne6 {[%emt 0:04:57]} 25. Rd1 {[%emt 0:00:38]} (25. Rg1 $11) 25... Rac8 {[%emt 0:05:25]} (25... d4 $15 26. Nxe5 fxe5) 26. Rg1 {[%emt 0:14:02]} ({White should play} 26. Nd4 $11) 26... Rc2 $15 {[%emt 0:07:52][%cal Oc2e2] ...Rxe2! is the strong threat.} 27. Rd2 {[%emt 0:02:43]} Qa4 {[%emt 0:08:05]} 28. Nxe5 {[%emt 0:10:32]} (28. Rxd5 $2 Nxf3 (28... Rxb2 $2 29. Nxe5 Nf4 30. Rd1 $19) (28... Qxa2 29. Rd2 $17) (28... Nf4 $2 29. g5 $19) 29. Bxf3 Nf4 $19) 28... Rc1+ {[%emt 0:01:16]} 29. Kg2 {[%emt 0:00:01][%cal Bf1g2,Bg2h2,Bh2g1][%mdl 32]} Nf4+ {[%emt 0:01:14]} 30. Kh2 $1 {[%emt 0:00:07]} Rxg1 {[%emt 0:01:23]} 31. Kxg1 {[%emt 0:00:46]} Qe4 {[%emt 0:01:16]} 32. Bf1 {[%emt 0:05:30] Wards off Qg2+} fxe5 {[%emt 0:01:50]} 33. Rd1 {[%emt 0:02:42] [#]} b5 {[%emt 0:01:05]} 34. Qg5+ $11 {[%emt 0:00:20]} Kh8 {[%emt 0:00:01]} 35. Qe7 {[%emt 0:00:55]} Ng6 {[%emt 0:00:33]} 36. Qc5 {[%emt 0:01:33]} d4 {[%emt 0:00:41]} 37. Bd3 $36 {[%emt 0:00:04][%mdl 2048] White fights for an advantage.} Qf4 {[%emt 0:00:39]} (37... Qf3 $5 38. Rd2 $8 Qxh3 39. Bxg6 (39. Qxa7 $2 Qxg4+ 40. Kf1 Rc8 $19) 39... Qxg4+ 40. Kf1 Qh3+ 41. Kg1 Qg4+ 42. Kf1 Qh3+ 43. Kg1 Qg4+ $11) 38. Bf5 {[%emt 0:00:11] Active counter play!} Kg7 {[%emt 0:00:30]} 39. Re1 {[%emt 0:00:35]} (39. Qxa7+ Rf7 40. Qc5 Nh4) (39. Qxb5 Nh4 40. Qe2 (40. Qb7+ $2 Rf7 $17) 40... Nxf5 41. gxf5 Rxf5 $17) 39... Rf7 {[%emt 0:00:22]} 40. Re4 {[%emt 0:00:16]} Qf3 {[%emt 0:00:14]} 41. Re1 {[%emt 0:01:45]} Qxh3 {[%emt 0:00:55]} 42. Be6 {[%emt 0:00:25] [#]} Nf4 $2 {[%emt 0:00:37][%mdl 8192]} 43. Qxe5+ $18 {[%emt 0:00:05] White is clearly winning.} (43. Bxf7 $2 Qg2#) 43... Rf6 {[%emt 0:00:33]} 44. Qg5+ {[%emt 0:00:05]} (44. Qxd4 $2 Qg2#) 44... Ng6 {[%emt 0:00:22] [#]} 45. Qxf6+ $3 {[%emt 0:00:04][%mdl 512] Weighted Error Value: White=0.14 (very precise) /Black=0.15 (very precise) .  Loses game:     	---       	Black=1      Mistake:       	White=3     	Black=3      Inaccurate:     	White=2     	Black=2      OK:         	White=13    	Black=14     Best:        	White=1     	Black=3      Strong:       	White=1     	---} 1-0

[Event "Baku Open 2024"]
[Site "Baku"]
[Date "2024.07.05"]
[Round "7.15"]
[White "Manafov, Vugar"]
[Black "Md Imran"]
[Result "1-0"]
[ECO "D27"]
[WhiteElo "2430"]
[BlackElo "2180"]
[Annotator "RC"]
[PlyCount "87"]
[EventDate "2024.06.29"]
[EventType "swiss"]
[EventCountry "AZE"]
[SourceTitle "playchess.com"]
[Source "ChessBase"]
[SourceQuality "1"]
[TimeControl "5400+30"]

1. d4 {[%emt 0:04:15]} d5 {[%emt 0:00:05]} 2. Nf3 {[%emt 0:00:20]} Nf6 {[%emt 0:00:07]} 3. c4 {[%emt 0:00:13]} dxc4 {[%emt 0:00:05]} 4. e3 {[%emt 0:00:23]} a6 {[%emt 0:00:04]} 5. Bxc4 {[%emt 0:00:17]} e6 {[%emt 0:00:06]} 6. O-O {[%emt 0:00:07]} c5 {[%emt 0:00:03]} 7. Be2 {[%emt 0:00:18]} cxd4 {[%emt 0:02:26]} 8. Nxd4 {[%emt 0:01:05]} Bd6 {[%emt 0:00:27]} 9. b3 {[%emt 0:00:53]} O-O {[%emt 0:00:06]} 10. Bb2 {[%emt 0:00:17]} Qe7 {[%emt 0:02:46]} 11. Nd2 {[%emt 0:01:20]} e5 {[%emt 0:00:24]} 12. N4f3 {[%emt 0:00:30]} Rd8 {[%emt 0:02:40]} 13. Nc4 {[%emt 0:13:53]} Bc7 {[%emt 0:00:09]} 14. Qc2 {[%emt 0:00:41]} Nc6 {[%emt 0:00:13]} 15. Ba3 {[%emt 0:01:08]} Qe8 {[%emt 0:00:17]} 16. Rfd1 {[%emt 0:11:20]} Bg4 {[%emt 0:00:42]} 17. h3 {[%emt 0:02:07]} Bh5 {[%emt 0:01:52]} 18. Bd6 {[%emt 0:05:05]} Bg6 {[%emt 0:01:16]} 19. Qb2 {[%emt 0:00:08]} Bxd6 {[%emt 0:00:45]} 20. Nxd6 {[%emt 0:00:28]} Qe7 {[%emt 0:00:06]} 21. Nc4 {[%emt 0:00:13]} Rxd1+ {[%emt 0:06:52]} 22. Rxd1 {[%emt 0:00:19]} Re8 {[%emt 0:00:10]} 23. Nh4 {[%emt 0:05:45]} b5 {[%emt 0:03:58]} 24. Nxg6 {[%emt 0:04:07]} hxg6 {[%emt 0:00:02]} 25. Nd2 {[%emt 0:05:53]} Rd8 {[%emt 0:01:50]} 26. Nf3 {[%emt 0:01:22]} Rxd1+ {[%emt 0:01:02]} 27. Bxd1 {[%emt 0:00:06]} Qc5 {[%emt 0:05:07]} 28. Bc2 {[%emt 0:14:53]} Kf8 {[%emt 0:08:50]} 29. Ng5 {[%emt 0:03:32]} Nb4 {[%emt 0:02:47]} 30. Bxg6 {[%emt 0:01:11]} Ke7 {[%emt 0:09:34]} 31. Nxf7 {[%emt 0:00:59]} e4 {[%emt 0:51:09]} 32. Qd2 {[%emt 0:04:49]} Nd3 {[%emt 0:00:00]} 33. Qa5 {[%emt 0:00:33]} Qc1+ {[%emt 0:00:00]} 34. Kh2 {[%emt 0:00:03]} Qc8 {[%emt 0:00:00]} 35. Qb6 {[%emt 0:02:01]} Qd7 {[%emt 0:00:00]} 36. Kg1 {[%emt 0:00:33]} Nd5 {[%emt 0:00:00]} 37. Qd4 {[%emt 0:00:13]} Nf6 {[%emt 0:00:00]} 38. Qb6 {[%emt 0:00:08]} Nd5 {[%emt 0:00:00]} 39. Qxa6 {[%emt 0:02:02]} Qc7 {[%emt 0:00:00]} 40. Ng5 {[%emt 0:01:20]} N5f4 {[%emt 0:00:00]} 41. g3 {[%emt 0:05:28]} Nxf2 {[%emt 0:00:00]} 42. gxf4 {[%emt 0:01:23]} Qc1+ {[%emt 0:00:00]} 43. Kxf2 {[%emt 0:00:29]} Qd2+ {[%emt 0:00:00]} 44. Kg3 {[%emt 0:00:03]} 1-0

[Event "Baku Open 2024"]
[Site "Baku"]
[Date "2024.07.05"]
[Round "7.16"]
[White "Stribuk, Artiom"]
[Black "Ajay Santhosh Parvathareddy"]
[Result "1-0"]
[ECO "E04"]
[WhiteElo "2422"]
[BlackElo "2163"]
[Annotator "TA"]
[PlyCount "67"]
[EventDate "2024.06.29"]
[EventType "swiss"]
[EventCountry "AZE"]
[SourceTitle "playchess.com"]
[Source "ChessBase"]
[SourceQuality "1"]
[TimeControl "5400+30"]

{[%evp 17,67,0,17,3,11,4,8,0,0,0,25,-12,27,25,39,27,83,50,75,67,106,91,101,89,99,59,104,94,195,188,320,198,307,309,308,276,379,383,405,406,490,401,705,691,650,511,690,651,688,682,974,1016]} 1. c4 {[%emt 0:00:02]} Nf6 {[%emt 0:00:08]} 2. g3 {[%emt 0:00:06]} e6 {[%emt 0:00:04]} 3. Bg2 {[%emt 0:00:19]} d5 {[%emt 0:00:04]} 4. d4 {[%emt 0:00:50]} dxc4 {[%emt 0:00:09]} 5. Nf3 {[%emt 0:00:22]} c5 {[%emt 0:00:04]} 6. O-O {[%emt 0:00:52]} Nc6 {[%emt 0:00:05]} 7. Ne5 {[%emt 0:03:59]} Bd7 {[%emt 0:05:11]} 8. Na3 {[%emt 0:00:19]} cxd4 {[%emt 0:00:32]} 9. Naxc4 {[%emt 0:00:11]} Bc5 {[%emt 0:02:04]} 10. a3 {[%emt 0:11:54]} a5 {[%emt 0:00:04]} 11. Qb3 {[%emt 0:06:28]} O-O {[%emt 0:18:12]} 12. Nxd7 {[%emt 0:00:36] The position is equal.} Qxd7 {[%emt 0:00:53]} 13. Qb5 {[%emt 0:01:28]} Ba7 {[%emt 0:00:32]} 14. Rd1 {[%emt 0:04:49][%cal Oa3a4]} Rfc8 {[%emt 0:22:19][%cal Oa5a4]} 15. Bg5 {[%emt 0:17:37][%cal Og5f6]} Nd5 {[%emt 0:00:48]} 16. Nxa5 {[%emt 0:01:40][%cal Bc4a5,Ba5b3,Bb3c5][%mdl 32]} Qc7 {[%emt 0:00:12]} (16... Rc7 $11 {keeps the balance.}) 17. Nb3 {[%emt 0:13:24] White is more active.} (17. Nxb7 $2 Rab8 18. Bxd5 exd5 (18... Rxb7 $2 19. Qxc6 Qxc6 20. Bxc6 $18) 19. Qxd5 Rxb7 $19 (19... Qxb7 $2 20. b4 $19)) 17... Qe5 {[%emt 0:10:21]} 18. Bf4 {[%emt 0:12:05] White leaves nothing to chance now.} Nxf4 {[%emt 0:07:23]} 19. Qxe5 {[%emt 0:00:05]} Nxe5 {[%emt 0:04:09]} 20. gxf4 {[%emt 0:00:06][%cal Og2b7] [#] Bxb7! is the strong threat.} Nc6 {[%emt 0:00:04]} ({Avoid the trap} 20... Nc4 $2 21. Bxb7 Nxb2 22. Rd2 $18) 21. Rac1 {[%emt 0:00:31]} Rab8 {[%emt 0:01:44][%cal Ba8b8,Bb8c8,Bc8d8,Bd8d4][%mdl 32]} 22. Nc5 {[%emt 0:03:23]} d3 {[%emt 0:10:35]} 23. Nxd3 $18 {[%emt 0:02:53]} (23. Rxd3 Bxc5 24. Rxc5 Kf8) 23... Na5 {[%emt 0:04:01]} (23... Bd4 $142 24. a4 g6) 24. Rxc8+ {[%emt 0:01:26]} Rxc8 {[%emt 0:00:09]} 25. b4 {[%emt 0:00:02]} Nc4 {[%emt 0:00:03]} 26. Bxb7 {[%emt 0:00:22]} Rd8 {[%emt 0:04:07]} 27. a4 {[%emt 0:00:10][%cal Ba3a4,Ba4a5][%mdl 32]} g6 {[%emt 0:00:11]} 28. a5 {[%emt 0:04:39]} Rd4 {[%emt 0:03:16]} 29. Ba6 {[%emt 0:04:03]} Na3 {[%emt 0:00:52]} (29... Nxa5 $142 30. bxa5 Ra4) 30. Rc1 {[%emt 0:01:26] White is clearly winning.} Kg7 {[%emt 0:00:18]} 31. Rc8 {[%emt 0:00:44]} Kf6 {[%emt 0:02:11]} 32. Ra8 {[%emt 0:02:29]} Rd7 {[%emt 0:00:16]} 33. b5 {[%emt 0:00:50]} Nc4 {[%emt 0:00:11] [#]} 34. Ne5 $1 {[%emt 0:00:54] Weighted Error Value: White=0.19 (very precise) /Black=0.45.  Mistake:       	---       	Black=4      Inaccurate:     	White=3     	Black=5      OK:         	White=11    	Black=2      Best:        	White=1     	Black=1} 1-0

[Event "Baku Open 2024"]
[Site "Baku"]
[Date "2024.07.05"]
[Round "7.17"]
[White "Kaldarova, Ayaulym"]
[Black "Mamedov, Edgar"]
[Result "0-1"]
[ECO "A13"]
[WhiteElo "2100"]
[BlackElo "2410"]
[Annotator "TA"]
[PlyCount "100"]
[EventDate "2024.06.29"]
[EventType "swiss"]
[EventCountry "AZE"]
[SourceTitle "playchess.com"]
[Source "ChessBase"]
[SourceQuality "1"]
[TimeControl "5400+30"]

{[%evp 10,100,1,0,0,0,0,0,0,-12,0,-7,-9,-8,0,-10,-11,-24,0,-71,-59,-66,-54,-41,-39,-52,19,15,7,12,9,19,0,0,0,-16,0,-12,-15,-10,-37,-47,-62,-68,0,-6,-4,-6,-8,-28,-24,-96,-84,-80,-54,-62,-63,-50,-52,-202,-194,-395,-397,-365,-281,-491,-309,-434,-422,-381,-151,-421,-164,-152,-135,-743,-725,-639,-402,-835,-631,-931,-911,-1414,-1414,-1414,-1381,-1381,-1374,-1270,-1198,-921,-769]} 1. c4 {[%emt 0:00:12]} e6 {[%emt 0:06:55]} 2. Nf3 {[%emt 0:00:45]} d5 {[%emt 0:00:38]} 3. g3 {[%emt 0:00:29]} dxc4 {[%emt 0:03:42]} 4. Bg2 {[%emt 0:04:18]} Nd7 {[%emt 0:03:11]} 5. O-O {[%emt 0:06:23]} Ngf6 {[%emt 0:01:51]} 6. Qc2 {[%emt 0:01:55]} Nb6 {[%emt 0:01:22]} 7. a4 {[%emt 0:02:53]} a5 {[%emt 0:01:16]} 8. Na3 {[%emt 0:01:07]} Bxa3 {[%emt 0:01:59] The position is equal.} 9. Rxa3 {[%emt 0:00:09]} O-O {[%emt 0:01:28]} 10. d3 {[%emt 0:14:29]} cxd3 {[%emt 0:08:14]} 11. Rxd3 {[%emt 0:00:16]} Nbd5 {[%emt 0:01:05]} 12. Bg5 {[%emt 0:12:55]} h6 {[%emt 0:20:11]} 13. Bh4 {[%emt 0:06:18]} Qe7 {[%emt 0:04:41] Threatens to win with ...Nb4.} 14. Qb1 {[%emt 0:18:53]} (14. Qc1 $11) 14... Qe8 {[%emt 0:07:09]} 15. Rfd1 {[%emt 0:07:12]} Bd7 {[%emt 0:11:34]} 16. b3 {[%emt 0:02:12]} Bc6 {[%emt 0:00:49]} 17. Qc1 {[%emt 0:03:56]} (17. Ne5 g5 18. Qc1 Nh7 $17) 17... Nh7 {[%emt 0:08:21]} (17... e5 $15 18. e4 Nb4 (18... Nxe4 $2 19. Rxd5 Bxd5 20. Rxd5 $18) 19. Bxf6 Nxd3 20. Rxd3 Bxe4 (20... gxf6 $2 21. Nh4 $18)) 18. e4 $11 {[%emt 0:05:54]} Ndf6 {[%emt 0:03:28]} 19. Bxf6 $1 {[%emt 0:01:17]} Nxf6 {[%emt 0:00:05]} 20. Ne5 {[%emt 0:00:12]} Ra6 {[%emt 0:01:44]} 21. Qf4 {[%emt 0:02:04]} Qe7 {[%emt 0:01:41]} 22. h4 {[%emt 0:01:16]} Rb6 {[%emt 0:03:45]} 23. g4 {[%emt 0:00:54]} Nh7 {[%emt 0:01:38]} 24. Qg3 {[%emt 0:02:40]} Be8 {[%emt 0:03:05]} 25. Nd7 {[%emt 0:01:38]} Bxd7 {[%emt 0:00:03]} 26. Rxd7 {[%emt 0:00:04]} Qb4 {[%emt 0:00:23]} (26... Qa3 $1 $15 27. R7d3 c6) 27. g5 {[%emt 0:01:57]} hxg5 {[%emt 0:00:16]} 28. hxg5 {[%emt 0:00:04] And now g6 would win.} g6 {[%emt 0:01:39]} 29. R1d3 {[%emt 0:01:32][%cal Og3h4]} (29. Rxc7 Qxb3 30. Qxb3 Rxb3 $17) 29... Rc6 {[%emt 0:01:08]} 30. Qh4 {[%emt 0:00:46]} (30. Re3 $11) 30... Rc3 {[%emt 0:00:34]} (30... Rc1+ {is interesting.} 31. Kh2 Qe1 32. Kg3 Rc2) 31. Qg3 {[%emt 0:00:47][%csl LRc3,LRc7]} Rc2 {[%emt 0:00:34]} 32. Rxc7 {[%emt 0:00:30]} Rxc7 {[%emt 0:00:34]} 33. Qxc7 {[%emt 0:00:05]} Qe1+ {[%emt 0:00:10]} 34. Kh2 {[%emt 0:00:23]} ({White has to play} 34. Bf1 $15) 34... Qxf2 $19 {[%emt 0:00:33]} (34... Nxg5 35. Qf4 Nh7 36. Qd2 Qxd2 37. Rxd2 $15) 35. Rg3 $2 {[%emt 0:00:59] [#]} (35. Qxa5 Qf4+ 36. Kg1) 35... Nxg5 $1 {[%emt 0:00:24][%mdl 512]} 36. Qe5 {[%emt 0:00:27]} Nh7 {[%emt 0:00:39] Strongly threatening ...Nf6.} 37. Qxa5 $2 {[%emt 0:00:28]} (37. Rf3 Qd2 38. Qg3) 37... Nf6 {[%emt 0:00:34]} 38. Qe5 {[%emt 0:00:39]} (38. Qc7 $142) 38... Rd8 {[%emt 0:01:14]} 39. Qg5 {[%emt 0:00:28]} Rd1 $2 {[%emt 0:00:44]} (39... Nxe4 40. Qxd8+ Kg7 41. Rg4 $18) (39... Rd2 $19 {and Black stays clearly on top.} 40. Rh3 (40. Rf3 $2 Qxf3 41. Qxd2 Ng4+ 42. Kg1 Qxb3 $19) 40... Nxe4) 40. Kh3 $2 {[%emt 0:00:33] [#]} (40. Rf3 $17 {was forced.} Qg1+ (40... Nxe4 41. Rxf2 Nxg5 42. Bxb7 $15) 41. Kh3 Nxe4 42. Qe7) 40... Nh5 $2 {[%emt 0:00:34]} 41. Rf3 {[%emt 0:00:23]} Qd4 $36 {[%emt 0:00:23][%mdl 2048] Keeping White busy. Black is more active.} 42. Qg4 $2 {[%emt 0:00:35][%mdl 8192] White does not recover from this.} (42. Qe7 $17 Qg7 (42... Qxe4 43. Qxf7+ Kh8 44. Qf8+ Kh7 45. Rf7+) 43. Bf1) 42... Qh8 {[%emt 0:00:31]} 43. Qh4 {[%emt 0:00:30]} e5 {[%emt 0:00:13] aiming for ...Nf4+.} 44. Kg4 {[%emt 0:00:32]} (44. Kh2 $142) 44... Rd4 {[%emt 0:00:51] Black is clearly winning.} 45. Kh3 {[%emt 0:00:30]} Nf4+ {[%emt 0:00:19]} 46. Rxf4 {[%emt 0:00:25]} exf4 {[%emt 0:00:04]} 47. Qxh8+ {[%emt 0:00:13]} Kxh8 {[%emt 0:00:05]} 48. Kg4 {[%emt 0:00:02]} Rd3 {[%emt 0:00:22] ( -> ...Rg3+)} 49. Kxf4 {[%emt 0:00:05]} Rxb3 {[%emt 0:00:03]} 50. e5 {[%emt 0:00:12]} Kg7 {[%emt 0:01:06] Weighted Error Value: White=0.76/Black=0.48.  Loses game:     	White=2     	---        Missed win:     	---       	Black=1      Mistake:       	White=6     	Black=3      Inaccurate:     	White=1     	Black=2      OK:         	White=11    	Black=16     Best:        	White=2     	Black=2      Strong:       	White=1     	---} 0-1

[Event "Baku Open 2024"]
[Site "Baku"]
[Date "2024.07.05"]
[Round "7.18"]
[White "Atakishiyev, Elmar"]
[Black "Gokerkan, Cem Kaan"]
[Result "1/2-1/2"]
[ECO "E04"]
[WhiteElo "2356"]
[BlackElo "2512"]
[Annotator "TA"]
[PlyCount "31"]
[EventDate "2024.06.29"]
[EventType "swiss"]
[EventCountry "AZE"]
[SourceTitle "playchess.com"]
[Source "ChessBase"]
[SourceQuality "1"]
[TimeControl "5400+30"]

{[%evp 12,31,20,0,35,0,0,0,0,0,0,0,0,0,0,0,0,0,0,-7,0,0]} 1. d4 {[%emt 0:05:19]} Nf6 {[%emt 0:00:17]} 2. Nf3 {[%emt 0:00:08]} d5 {[%emt 0:00:14]} 3. c4 {[%emt 0:00:11]} e6 {[%emt 0:00:06]} 4. g3 {[%emt 0:00:06]} dxc4 {[%emt 0:00:29]} 5. Bg2 {[%emt 0:00:12]} Bb4+ {[%emt 0:00:07]} 6. Bd2 {[%emt 0:00:05]} a5 {[%emt 0:00:09]} 7. O-O {[%emt 0:00:49][%mdl 1024] White has compensation.} O-O {[%emt 0:00:18]} 8. e3 {[%emt 0:00:38]} Ra6 {[%emt 0:02:27] The position is equal.} 9. Qc2 {[%emt 0:00:38]} b5 {[%emt 0:00:43]} 10. a4 {[%emt 0:00:07]} c6 {[%emt 0:00:13]} 11. Nc3 {[%emt 0:00:10]} Rb6 {[%emt 0:01:31]} 12. e4 {[%emt 0:00:15]} h6 {[%emt 0:00:33]} 13. Be3 {[%emt 0:01:10][%cal Od4d5]} Nbd7 {[%emt 0:01:04]} 14. Rfd1 {[%emt 0:06:14]} Ng4 {[%emt 0:07:27]} 15. Bf4 {[%emt 0:00:34] [#] And now e5 would win.} Bb7 {[%emt 0:00:05]} 16. e5 {[%emt 0:02:08] A rather calm draw.   Weighted Error Value: White=0.05 (flawless) /Black=0.00 (flawless) .  Inaccurate:     	White=1     	---        OK:         	White=7     	Black=7} 1/2-1/2

[Event "Baku Open 2024"]
[Site "Baku"]
[Date "2024.07.05"]
[Round "7.19"]
[White "Mohamed Anees M"]
[Black "Shyam, Sundar M."]
[Result "0-1"]
[ECO "C60"]
[WhiteElo "2306"]
[BlackElo "2493"]
[Annotator "TA"]
[PlyCount "64"]
[EventDate "2024.06.29"]
[EventType "swiss"]
[EventCountry "AZE"]
[SourceTitle "playchess.com"]
[Source "ChessBase"]
[SourceQuality "1"]
[TimeControl "5400+30"]

{[%evp 13,64,22,25,17,26,24,36,16,26,24,30,3,23,29,31,-39,-33,-65,-54,-100,-97,-164,-112,-110,-121,-114,-110,-119,-130,-106,-124,-184,-175,-179,-181,-225,-214,-472,-467,-598,-600,-594,-637,-619,-623,-9139,-6814,-2587,-997,-1542,-993,-923,-910]} 1. e4 {[%emt 0:00:07]} e5 {[%emt 0:00:22]} 2. Nf3 {[%emt 0:00:07]} Nc6 {[%emt 0:00:08]} 3. Bb5 {[%emt 0:00:15]} g6 {[%emt 0:00:12]} 4. O-O {[%emt 0:02:50]} Bg7 {[%emt 0:00:03]} 5. c3 {[%emt 0:00:11]} a6 {[%emt 0:00:08]} 6. Ba4 {[%emt 0:01:03]} d6 {[%emt 0:00:14]} 7. h3 {[%emt 0:05:50]} Nf6 {[%emt 0:01:00]} 8. d4 {[%emt 0:02:26][%cal Bd2d4,Bd4d5][%mdl 32]} Bd7 {[%emt 0:00:11]} 9. Re1 {[%emt 0:06:15]} O-O {[%emt 0:03:37]} 10. d5 {[%emt 0:03:32] White is slightly better.} Ne7 {[%emt 0:00:10]} 11. Bxd7 {[%emt 0:00:25]} Nxd7 {[%emt 0:00:04]} 12. c4 {[%emt 0:00:20]} h6 {[%emt 0:00:04]} 13. Nc3 {[%emt 0:01:54]} f5 {[%emt 0:00:06][%cal Ob7b5]} 14. exf5 {[%emt 0:02:01]} (14. a4 $14) 14... gxf5 $15 {[%emt 0:01:50]} 15. Nh2 {[%emt 0:04:33]} Kh7 {[%emt 0:10:26]} 16. Nf1 {[%emt 0:03:36]} (16. Be3 $15 {feels stronger.}) 16... e4 $17 {[%emt 0:05:20]} 17. f3 {[%emt 0:18:24]} (17. Ng3 $17 {keeps fighting.}) 17... Ne5 {[%emt 0:15:35]} (17... exf3 $1 $19 18. Qxf3 Ne5) 18. Nh2 {[%emt 0:45:41]} N7g6 $1 (18... Nxc4 $6 19. fxe4 Bxc3 20. bxc3 $11) (18... Nd3 19. Re2 $11) 19. fxe4 {[%emt 0:00:00]} f4 {[%emt 0:09:36] Hoping for ...f3.} (19... Nxc4 $6 20. exf5 Rxf5 21. Re4 $11) 20. Rf1 {[%emt 0:00:00] [#]} Qh4 $1 {[%emt 0:04:17] Threatens to win with ...f3.} (20... Nxc4 $6 21. Qc2 $11) 21. Bd2 {[%emt 0:00:00] [#]} Rf7 $1 {[%emt 0:07:45][%cal Oa8f8] Black is more active.} ({Don't do} 21... Nxc4 22. Nf3 Qe7 23. Qc2 $15) 22. Qe1 {[%emt 0:00:00]} (22. Be1 $17 Qg5 23. Qe2 (23. Nf3 $2 Nxf3+ 24. Qxf3 Bd4+ 25. Bf2 Ne5 $19)) 22... f3 $19 {[%emt 0:15:30]} ({And not} 22... Nxc4 23. Qxh4 Nxh4 24. Bxf4 $11) 23. Qxh4 {[%emt 0:00:00]} Nxh4 {[%emt 0:00:07]} 24. g3 {[%emt 0:00:00]} Nxc4 {[%emt 0:00:04]} 25. Rad1 {[%emt 0:00:00]} (25. Be1 Rg8 26. g4 Bd4+ (26... Nxb2 27. Bxh4 Bxc3 28. Rxf3 $15) 27. Bf2 Bxc3 28. bxc3) 25... Rg8 {[%emt 0:01:13] aiming for ...Bxc3. Black is clearly winning.} 26. Ng4 {[%emt 0:01:25]} h5 {[%emt 0:01:15]} 27. gxh4 {[%emt 0:01:10]} hxg4 {[%emt 0:00:05]} 28. hxg4 {[%emt 0:00:49]} Bxc3 {[%emt 0:00:22]} 29. bxc3 {[%emt 0:00:17]} Rxg4+ {[%emt 0:00:04]} 30. Kh1 {[%emt 0:00:31]} Rxh4+ {[%emt 0:00:05]} 31. Kg1 {[%emt 0:00:04]} Rg7+ {[%emt 0:00:58]} 32. Kf2 {[%emt 0:00:05]} Rh2+ {[%emt 0:00:02] Weighted Error Value: White=0.61/Black=0.25 (precise) .  Mistake:       	White=5     	Black=1      Inaccurate:     	White=2     	---        OK:         	White=7     	Black=8      Best:        	---       	Black=2      Strong:       	---       	Black=3} 0-1